bitfinex-derivatives/quotes_BTCF0:USTF0_20250724
["timestamp","ask_amount","ask_price","bid_price","bid_amount"]
[1753333021424,0.50961782,118010.0,118000.0,0.7784383]
[1753333021725,0.50961782,118010.0,118000.0,1.04494907]
[1753333022025,0.50961782,118010.0,118000.0,1.16874907]
[1753333022219,0.50961782,118010.0,118000.0,1.28545907]
[1753333022726,0.34023382,118010.0,118000.0,1.30936907]
[1753333023023,0.15005382,118010.0,118000.0,1.57587984]
[1753333023223,0.12953,118010.0,118000.0,1.57587984]
[1753333023415,0.07981,118010.0,118000.0,0.70432907]
[1753333023617,0.07981,118010.0,118000.0,1.0521783]
[1753333023922,0.1259,118010.0,118000.0,1.31868907]
[1753333024424,0.0011,118010.0,118000.0,1.58519984]
[1753333025620,0.0011,118010.0,118000.0,1.60221793]
[1753333026322,0.19261,118010.0,118000.0,1.33570716]
[1753333027923,0.19261,118010.0,118000.0,1.60221793]
[1753333028127,0.21306965,118010.0,118000.0,1.60221793]
[1753333028426,0.02155965,118010.0,118000.0,1.60221793]
[1753333028721,0.0011,118010.0,118000.0,1.60221793]
[1753333028923,0.0011,118010.0,118000.0,1.89961793]
[1753333030624,0.0011,118010.0,118000.0,1.8994946]
[1753333034222,0.19171,118030.0,118020.0,0.1693696]
[1753333034526,0.21221373,118030.0,118020.0,1.26573037]
[1753333035927,0.02270373,118030.0,118020.0,1.26573037]
[1753333037124,0.02170373,118030.0,118020.0,1.49014662]
[1753333037325,0.19161,118050.0,118040.0,0.1693409]
[1753333037531,0.19161,118050.0,118040.0,1.50388055]
[1753333037828,0.0001,118050.0,118040.0,1.50388055]
[1753333038529,1.5001,118050.0,118040.0,1.50388055]
[1753333039132,1.5001,118050.0,118040.0,1.31563539]
[1753333039327,1.5011,118050.0,118040.0,1.31563539]
[1753333039531,1.6704266,118050.0,118040.0,1.04937353]
[1753333039727,1.7468166,118050.0,118040.0,1.31563539]
[1753333039934,1.7929066,118050.0,118040.0,1.31563539]
[1753333040133,1.8619366,118050.0,118040.0,1.31563539]
[1753333040735,1.8619366,118050.0,118040.0,1.61303539]
[1753333041725,1.8619366,118050.0,118040.0,1.34677353]
[1753333041930,1.8619366,118050.0,118040.0,1.61303539]
[1753333044638,1.69261,118050.0,118040.0,1.61303539]
[1753333045134,1.8619366,118050.0,118040.0,1.61303539]
[1753333045339,1.5011,118050.0,118040.0,1.61303539]
[1753333046638,0.0011,118050.0,118040.0,1.61303539]
[1753333047743,0.3619366,118050.0,118040.0,1.61303539]
[1753333048343,0.19261,118050.0,118040.0,1.67303539]
[1753333049242,0.21308392,118050.0,118040.0,1.67303539]
[1753333049841,0.32241052,118050.0,118040.0,1.61303539]
[1753333050041,0.32241052,118050.0,118040.0,1.61313539]
[1753333051144,0.15308392,118050.0,118040.0,1.61313539]
[1753333052735,0.09686392,118050.0,118040.0,1.61313539]
[1753333052941,0.02047392,118050.0,118040.0,1.61313539]
[1753333055044,0.10388392,118050.0,118040.0,1.61313539]
[1753333055543,0.17283392,118050.0,118040.0,1.61313539]
[1753333059239,0.17283392,118050.0,118040.0,1.80132221]
[1753333060552,0.06895,118060.0,118050.0,0.4622466]
[1753333060848,0.06895,118070.0,118060.0,0.4622322]
[1753333061037,0.06895,118070.0,118060.0,1.29813654]
[1753333061243,1.56905,118080.0,118070.0,0.3750879]
[1753333061451,1.56905,118080.0,118070.0,0.75649769]
[1753333061452,1.7383336,118080.0,118070.0,0.75649769]
[1753333061852,1.56905,118080.0,118070.0,0.75649769]
[1753333062351,1.57305,118080.0,118070.0,0.75649769]
[1753333062652,1.65646,118080.0,118070.0,0.75649769]
[1753333063449,1.65946,118080.0,118070.0,0.75649769]
[1753333063852,1.8287436,118080.0,118070.0,0.75649769]
[1753333064052,1.8287436,118080.0,118070.0,0.76465013]
[1753333064256,1.65946,118080.0,118070.0,0.76465013]
[1753333064947,1.57605,118080.0,118070.0,0.76465013]
[1753333065154,0.07605,118080.0,118070.0,0.76465013]
[1753333065448,0.12089,118080.0,118070.0,0.76465013]
[1753333065854,0.2043,118080.0,118070.0,0.76465013]
[1753333066253,0.07605,118080.0,118070.0,0.76465013]
[1753333066755,0.3400336,118080.0,118070.0,0.76465013]
[1753333067050,0.4561036,118080.0,118070.0,0.76465013]
[1753333067452,0.4521036,118080.0,118070.0,0.76465013]
[1753333067651,0.4531036,118080.0,118070.0,0.76465013]
[1753333069453,0.4531036,118080.0,118070.0,0.53742579]
[1753333069652,0.28382,118080.0,118070.0,0.53742579]
[1753333069956,0.25116,118080.0,118070.0,0.76465013]
[1753333071658,0.28382,118080.0,118070.0,0.76465013]
[1753333072460,0.30373162,118080.0,118070.0,0.76465013]
[1753333073059,0.18766162,118080.0,118070.0,0.99187447]
[1753333073357,0.21921162,118080.0,118070.0,0.76465013]
[1753333073860,0.30373162,118080.0,118070.0,0.76465013]
[1753333074660,0.09096162,118080.0,118070.0,0.76465013]
[1753333075364,0.13580162,118080.0,118070.0,0.99187447]
[1753333075565,0.18766162,118080.0,118070.0,0.99187447]
[1753333075765,0.18766162,118080.0,118070.0,0.76465013]
[1753333076160,0.13580162,118080.0,118070.0,0.76465013]
[1753333076866,0.30373162,118080.0,118070.0,0.76465013]
[1753333078966,0.30373162,118080.0,118070.0,0.53742579]
[1753333079271,0.30373162,118080.0,118070.0,0.76465013]
[1753333079965,0.52227522,118080.0,118070.0,0.72525013]
[1753333080269,0.52227522,118080.0,118070.0,1.33261013]
[1753333080470,0.35299162,118080.0,118070.0,1.33261013]
[1753333080671,0.35299685,118080.0,118070.0,1.33261013]
[1753333080873,0.52228045,118080.0,118070.0,1.33261013]
[1753333081670,0.35299685,118080.0,118070.0,1.33261013]
[1753333082073,0.35199685,118080.0,118070.0,1.33261013]
[1753333083064,0.35099685,118080.0,118070.0,1.33361013]
[1753333086569,0.52028045,118080.0,118070.0,1.33361013]
[1753333088578,0.52028045,118080.0,118070.0,1.10638579]
[1753333088784,0.52028045,118080.0,118070.0,1.33361013]
[1753333092083,0.52028045,118080.0,118070.0,1.33273013]
[1753333094684,0.35099685,118080.0,118070.0,1.33273013]
[1753333094894,0.52028045,118080.0,118070.0,0.72625013]
[1753333095099,0.52028045,118080.0,118070.0,1.33245013]
[1753333096189,0.35099685,118080.0,118070.0,1.33245013]
[1753333096389,0.52028045,118080.0,118070.0,1.33245013]
[1753333097597,0.52028045,118080.0,118070.0,1.33221013]
[1753333098497,0.47102045,118080.0,118070.0,1.37091013]
[1753333098699,0.30173685,118080.0,118070.0,1.37091013]
[1753333100004,0.47102045,118080.0,118070.0,1.37091013]
[1753333102504,0.51816045,118080.0,118070.0,1.37091013]
[1753333102703,0.51816045,118080.0,118070.0,1.33221013]
[1753333103004,0.51816045,118080.0,118070.0,1.33185013]
[1753333103398,0.74538479,118080.0,118070.0,0.12393789]
[1753333103597,0.1693266,118050.0,118040.0,0.48076433]
[1753333103806,0.51526345,118050.0,118040.0,1.08748433]
[1753333104206,0.51526345,118050.0,118040.0,1.31470867]
[1753333105006,0.51526345,118050.0,118040.0,1.32291535]
[1753333105198,0.34593685,118050.0,118040.0,1.32291535]
[1753333105394,0.34593685,118050.0,118040.0,0.76355535]
[1753333105606,0.51526345,118050.0,118040.0,1.37071535]
[1753333106101,0.34593685,118050.0,118040.0,1.37071535]
[1753333106405,0.51526345,118050.0,118040.0,1.43839358]
[1753333108906,0.34593685,118050.0,118040.0,1.43839358]
[1753333109309,0.51526345,118050.0,118040.0,1.43839358]
[1753333112211,0.51526345,118050.0,118040.0,1.21116924]
[1753333112610,0.51526345,118050.0,118040.0,1.43839358]
[1753333114213,0.51501172,118050.0,118040.0,1.43839358]
[1753333114914,0.51501172,118050.0,118040.0,1.21116924]
[1753333115118,0.51501172,118050.0,118040.0,0.84212931]
[1753333115308,0.51501172,118050.0,118040.0,1.01147021]
[1753333115812,0.51501172,118050.0,118040.0,0.84212931]
[1753333116117,0.51501172,118050.0,118040.0,0.93562021]
[1753333116310,0.51701172,118050.0,118040.0,0.93562021]
[1753333116510,0.51801172,118050.0,118040.0,0.93562021]
[1753333117515,0.51801172,118050.0,118040.0,1.01286021]
[1753333118216,0.51801172,118050.0,118040.0,0.70393263]
[1753333118417,0.74523606,118050.0,118040.0,0.70393263]
[1753333118716,0.51801172,118050.0,118040.0,0.70393263]
[1753333119710,0.51801172,118050.0,118040.0,0.67155263]
[1753333120010,0.51801172,118050.0,118040.0,0.01730263]
[1753333120219,1.29423572,118050.0,118040.0,0.01730263]
[1753333120512,1.29423572,118050.0,118040.0,0.0001]
[1753333121217,1.42179291,118050.0,118040.0,0.0001]
[1753333121418,1.43015728,118050.0,118040.0,0.0001]
[1753333124023,1.42179291,118050.0,118040.0,0.0001]
[1753333124624,1.4299322,118050.0,118040.0,0.0001]
[1753333126423,0.2994053,118030.0,118020.0,0.94230243]
[1753333126624,0.51204042,118030.0,118020.0,0.99521243]
[1753333126824,0.51204042,118030.0,118020.0,0.38853243]
[1753333127026,0.51204042,118030.0,118020.0,0.21916403]
[1753333127425,0.51204042,118030.0,118020.0,0.38853363]
[1753333128127,0.51204042,118030.0,118020.0,0.38953363]
[1753333128327,0.51204042,118030.0,118020.0,0.43395363]
[1753333128823,0.51204042,118030.0,118020.0,0.26458403]
[1753333129327,0.51204042,118030.0,118020.0,0.43495363]
[1753333134633,0.51204042,118030.0,118020.0,0.26558403]
[1753333134930,0.51204042,118030.0,118020.0,0.43495353]
[1753333136134,0.51204042,118030.0,118020.0,0.26558403]
[1753333136326,0.51204042,118030.0,118020.0,0.43495353]
[1753333138329,0.51204032,118030.0,118020.0,0.43495353]
[1753333138533,0.08831512,118030.0,118020.0,0.47120353]
[1753333139830,0.01966512,118030.0,118020.0,0.47120353]
[1753333140433,0.18902032,118030.0,118020.0,1.07632353]
[1753333140638,0.25767032,118030.0,118020.0,1.07648353]
[1753333140839,0.30325032,118030.0,118020.0,1.07648353]
[1753333141033,0.51205645,118030.0,118020.0,1.04023353]
[1753333141438,0.13391125,118030.0,118020.0,1.07648353]
[1753333141641,0.01968125,118030.0,118020.0,1.07648353]
[1753333150749,0.08680125,118030.0,118020.0,1.07648353]
[1753333151149,0.01968125,118030.0,118020.0,1.07648353]
[1753333165161,0.08680125,118030.0,118020.0,1.07648353]
[1753333167071,0.25615645,118030.0,118020.0,1.07648353]
[1753333167268,0.46632645,118030.0,118020.0,1.07216353]
[1753333168372,0.51564645,118030.0,118020.0,1.03591353]
[1753333169265,0.51587935,118030.0,118020.0,1.03591353]
[1753333169567,0.51587935,118030.0,118020.0,1.03491353]
[1753333169968,0.51587935,118030.0,118020.0,1.03391353]
[1753333170866,0.46655935,118030.0,118020.0,1.06591353]
[1753333172466,0.29720415,118030.0,118020.0,1.06591353]
[1753333173160,0.46655935,118030.0,118020.0,1.06591353]
[1753333174872,0.29720415,118030.0,118020.0,1.06591353]
[1753333175370,0.46655935,118030.0,118020.0,1.06591353]
[1753333178273,0.51490935,118030.0,118020.0,1.06591353]
[1753333178567,0.51490935,118030.0,118020.0,1.03391353]
[1753333179377,0.51490935,118030.0,118020.0,0.86454403]
[1753333179564,0.51490935,118030.0,118020.0,0.85611]
[1753333180167,0.51490935,118030.0,118020.0,0.81169]
[1753333180468,0.51490935,118030.0,118020.0,0.0002]
[1753333180769,0.51590935,118030.0,118020.0,0.0002]
[1753333181474,0.51490935,118030.0,118020.0,0.0002]
[1753333181772,0.51890935,118030.0,118020.0,0.0002]
[1753333182269,0.51690935,118030.0,118020.0,0.0002]
[1753333182575,0.51990935,118030.0,118020.0,0.0002]
[1753333183277,0.52823212,118030.0,118020.0,0.0002]
[1753333183770,0.51990935,118030.0,118020.0,0.0002]
[1753333190779,0.51990935,118030.0,118020.0,0.04816]
[1753333192680,0.51990935,118030.0,118020.0,0.0002]
[1753333194080,0.68936535,118030.0,118020.0,0.0002]
[1753333195586,0.68936535,118030.0,118000.0,0.68253517]
[1753333195587,0.4839039,118010.0,118000.0,0.81314517]
[1753333195770,0.50381805,118010.0,118000.0,0.81314517]
[1753333196277,0.50381805,118010.0,118000.0,0.65745517]
[1753333196774,0.50381805,118010.0,118000.0,0.21222517]
[1753333198977,0.50581805,118010.0,118000.0,0.16167517]
[1753333199177,0.50581805,118010.0,118000.0,0.1532]
[1753333199376,0.50681805,118010.0,118000.0,0.1532]
[1753333201283,0.50681805,118010.0,118000.0,0.20375]
[1753333201482,0.50681805,118010.0,118000.0,0.1532]
[1753333201678,0.50681805,118010.0,118000.0,0.04806]
[1753333201875,0.50681805,118010.0,118000.0,0.20375]
[1753333202379,0.50688815,118010.0,118000.0,0.20375]
[1753333202881,0.50688815,118010.0,118000.0,0.04806]
[1753333203787,0.50688815,118010.0,118000.0,0.0001]
[1753333204178,0.50688815,118010.0,117990.0,0.05363082]
[1753333204179,0.2927383,118000.0,117990.0,0.05363082]
[1753333204384,0.2927527,117990.0,117980.0,0.80473]
[1753333204584,0.49903695,117990.0,117980.0,1.018567]
[1753333204784,0.49903695,117990.0,117980.0,0.84914]
[1753333205783,0.49903695,117990.0,117980.0,1.018567]
[1753333206087,0.49903695,117990.0,117980.0,0.85114]
[1753333206391,0.49903695,117990.0,117980.0,0.8596262]
[1753333207586,0.50103695,117990.0,117980.0,0.8576262]
[1753333207787,0.50203695,117990.0,117980.0,0.8576262]
[1753333209290,0.5020762,117990.0,117980.0,0.8132162]
[1753333209589,0.5020762,117990.0,117980.0,0.7377762]
[1753333210090,0.5020762,117990.0,117980.0,0.8132162]
[1753333215997,0.5010762,117990.0,117980.0,0.8132162]
[1753333216187,0.5030762,117990.0,117980.0,0.8132162]
[1753333217694,0.5020762,117990.0,117980.0,0.8132162]
[1753333217895,0.5020762,117990.0,117980.0,0.8576262]
[1753333218896,0.5020762,117990.0,117980.0,0.80473]
[1753333219194,0.5020762,117990.0,117980.0,0.72929]
[1753333219492,0.5020762,117990.0,117980.0,0.80473]
[1753333219796,0.5020762,117990.0,117980.0,0.81316063]
[1753333219984,0.4375962,117990.0,117980.0,0.81316063]
[1753333220182,0.5020762,117990.0,117980.0,0.81316063]
[1753333220592,0.5020762,117990.0,117980.0,0.85757063]
[1753333236400,0.4556862,117990.0,117980.0,0.88439063]
[1753333236600,0.2569162,117990.0,117980.0,1.05381763]
[1753333237406,0.2980462,117990.0,117980.0,1.05381763]
[1753333238713,0.2980462,117990.0,117980.0,0.88439063]
[1753333238913,0.4228562,117990.0,117980.0,0.88439063]
[1753333239114,0.4536862,117990.0,117980.0,0.88439063]
[1753333239817,0.5011062,117990.0,117980.0,0.24838]
[1753333240012,0.5011062,117990.0,117980.0,0.84874]
[1753333241010,0.5011062,117990.0,117980.0,0.8570007]
[1753333241616,0.5011062,117990.0,117980.0,0.84874]
[1753333241815,0.5011062,117990.0,117980.0,0.80433]
[1753333242913,0.5011062,117990.0,117980.0,0.8126425]
[1753333243109,0.5011062,117990.0,117980.0,0.8555525]
[1753333244020,0.5011062,117990.0,117980.0,0.2551925]
[1753333246320,0.5001062,117990.0,117980.0,0.2551925]
[1753333246513,0.5011062,117990.0,117980.0,0.2551925]
[1753333246911,0.4991062,117990.0,117980.0,0.2551925]
[1753333250518,0.4516862,117990.0,117980.0,0.2820125]
[1753333250722,0.4516862,117990.0,117980.0,0.4514395]
[1753333250919,0.1904362,117990.0,117980.0,0.4514395]
[1753333252413,0.2530962,117990.0,117980.0,0.4514395]
[1753333252618,0.2530962,117990.0,117980.0,0.4534395]
[1753333252817,0.2520962,117990.0,117980.0,0.4564395]
[1753333253017,0.2520962,117990.0,117980.0,0.2870125]
[1753333253317,0.2520962,117990.0,117980.0,0.4524395]
[1753333253523,0.2520962,117990.0,117980.0,0.2840125]
[1753333253725,0.2520962,117990.0,117980.0,0.4534395]
[1753333255124,0.1894362,117990.0,117980.0,0.4534395]
[1753333257918,0.2520962,117990.0,117980.0,0.2840125]
[1753333258230,0.2520962,117990.0,117980.0,0.4534395]
[1753333264926,0.1894362,117990.0,117980.0,0.4534395]
[1753333265822,0.0200235,117990.0,117980.0,0.4534395]
[1753333266025,0.1468142,118010.0,118000.0,0.2846583]
[1753333266026,0.2315138,118010.0,118000.0,0.2846583]
[1753333266225,0.3162096,118010.0,118000.0,1.0225583]
[1753333266832,0.3162096,118010.0,118000.0,0.85316]
[1753333267132,0.5113596,118010.0,118000.0,0.85316]
[1753333268132,0.5123596,118010.0,118000.0,0.85316]
[1753333272136,0.5611196,118010.0,118000.0,0.8286]
[1753333274535,0.5611196,118010.0,118000.0,0.82844]
[1753333275039,0.5123596,118010.0,118000.0,1.0223983]
[1753333275634,0.5123596,118010.0,118000.0,0.853]
[1753333276940,0.5123596,118010.0,118000.0,0.82844]
[1753333277540,0.5123596,118010.0,118000.0,1.0223983]
[1753333278042,0.53230563,118010.0,118000.0,1.0223983]
[1753333279245,0.53230563,118010.0,118000.0,0.853]
[1753333280837,0.29680723,118010.0,118000.0,1.0223983]
[1753333281043,0.23478723,118010.0,118000.0,1.0223983]
[1753333281233,0.19243983,118010.0,118000.0,1.0223983]
[1753333282140,0.19043983,118010.0,118000.0,1.0223983]
[1753333282336,0.19143983,118010.0,118000.0,1.0223983]
[1753333282833,0.02204603,118010.0,118000.0,1.03957757]
[1753333283032,0.19142993,118010.0,118000.0,0.60910557]
[1753333283232,0.25344993,118010.0,118000.0,1.03937757]
[1753333283545,0.44659993,118010.0,118000.0,0.86997927]
[1753333283839,0.44559993,118010.0,118000.0,0.24565927]
[1753333284040,0.49435993,118010.0,118000.0,0.84537927]
[1753333284442,0.50280421,118010.0,118000.0,0.78891]
[1753333284747,0.50280421,118010.0,117990.0,0.78891]
[1753333284748,0.2904283,118000.0,117990.0,0.78891]
[1753333285047,0.49327433,118000.0,117990.0,0.18919]
[1753333285249,0.49327433,118000.0,117990.0,0.12104]
[1753333285746,0.49327433,118000.0,117990.0,0.18919]
[1753333285935,0.49327433,118000.0,117990.0,0.19019]
[1753333286740,0.49327433,118000.0,117990.0,0.19119]
[1753333287143,0.49327433,118000.0,117990.0,0.23048]
[1753333287541,0.49327433,118000.0,117990.0,0.22948]
[1753333287747,0.49327433,118000.0,117990.0,0.22848]
[1753333287944,0.49427433,118000.0,117990.0,0.22848]
[1753333300261,0.44551433,118000.0,117990.0,0.25073]
[1753333303469,0.49241433,118000.0,117990.0,0.22848]
[1753333308672,0.49267721,118000.0,117990.0,0.22848]
[1753333315276,0.48935721,118000.0,117990.0,0.22479]
[1753333316274,0.44245721,118000.0,117990.0,0.4164527]
[1753333317077,0.28896721,118000.0,117990.0,0.4164527]
[1753333317278,0.24915721,118000.0,117990.0,0.4164527]
[1753333320480,0.2289483,118000.0,117990.0,0.4164527]
[1753333320778,0.24918609,118000.0,117990.0,0.4164527]
[1753333321572,0.19063609,118000.0,117990.0,0.4164527]
[1753333321778,0.19063609,118000.0,117990.0,1.0153327]
[1753333322176,0.19063609,118000.0,117990.0,1.0163327]
[1753333322378,0.18963609,118000.0,117990.0,1.0173327]
[1753333322679,0.24818609,118000.0,117990.0,1.0173327]
[1753333323676,0.18963609,118000.0,117990.0,1.0173327]
[1753333324379,0.24712609,118000.0,117990.0,1.0173327]
[1753333324680,0.24712609,118000.0,117990.0,0.4184527]
[1753333324882,0.24712609,118000.0,117990.0,1.0172927]
[1753333327881,0.24712609,118000.0,117990.0,1.0171727]
[1753333328077,0.39866609,118000.0,117990.0,1.0171727]
[1753333328282,0.39866609,118000.0,117990.0,1.0171726]
[1753333328582,0.42921609,118000.0,117990.0,1.0171726]
[1753333329484,0.47797609,118000.0,117990.0,0.22679]
[1753333329682,0.47797609,118000.0,117990.0,0.82539]
[1753333330476,0.47797609,118000.0,117990.0,0.78979]
[1753333330776,0.47797609,118000.0,117990.0,0.78879]
[1753333331784,0.47897609,118000.0,117990.0,0.78879]
[1753333332184,0.47897609,118000.0,117990.0,0.78779]
[1753333332382,0.47997609,118000.0,117990.0,0.78779]
[1753333332882,0.48097609,118000.0,117990.0,0.82036]
[1753333337583,0.48097609,118000.0,117990.0,0.78779]
[1753333337785,0.48097609,118000.0,117990.0,0.71964]
[1753333337979,0.48097609,118000.0,117990.0,0.64367]
[1753333338872,0.48097609,118000.0,117990.0,0.67575]
[1753333339585,0.48097609,118000.0,117990.0,0.74799]
[1753333339984,0.48097609,118000.0,117990.0,0.14939]
[1753333340386,0.48097609,118000.0,117990.0,0.19682]
[1753333340587,0.48097609,118000.0,117990.0,0.22939]
[1753333341389,0.48097609,118000.0,117990.0,0.19682]
[1753333341685,0.48097609,118000.0,117990.0,0.07715]
[1753333341887,0.4577527,117990.0,117980.0,0.10432]
[1753333342087,1.07623049,117990.0,117980.0,0.10432]
[1753333342588,1.07623049,117990.0,117970.0,0.16919103]
[1753333342589,0.457767,117980.0,117970.0,0.16919103]
[1753333342782,0.47800479,117980.0,117970.0,0.12176103]
[1753333342979,0.2827714,117970.0,117960.0,0.75843628]
[1753333343183,0.47801919,117970.0,117960.0,0.15175]
[1753333343387,0.47801919,117970.0,117960.0,0.03208]
[1753333343990,0.47801919,117970.0,117960.0,0.19981]
[1753333345292,0.48001919,117970.0,117960.0,0.20824337]
[1753333345486,0.48001919,117970.0,117960.0,0.19981]
[1753333345991,0.48101919,117970.0,117960.0,0.19981]
[1753333348996,0.48101919,117970.0,117960.0,0.23238]
[1753333349497,0.4578101,117950.0,117940.0,0.38764749]
[1753333349696,0.4578101,117950.0,117940.0,0.79588299]
[1753333350090,0.4578101,117950.0,117940.0,0.91618299]
[1753333350286,0.4578101,117950.0,117940.0,0.84755414]
[1753333350493,0.4578101,117950.0,117940.0,0.41895864]
[1753333350692,0.4578101,117950.0,117940.0,0.41995864]
[1753333350885,0.47791943,117950.0,117940.0,0.2590795]
[1753333351287,0.4578101,117950.0,117940.0,0.2590795]
[1753333352000,0.4578101,117950.0,117940.0,0.21790414]
[1753333352188,0.47791357,117950.0,117940.0,0.21790414]
[1753333352392,0.47791357,117950.0,117940.0,0.21890414]
[1753333352393,0.47791325,117950.0,117940.0,0.21890414]
[1753333352696,0.6045714,117950.0,117940.0,0.002]
[1753333353290,0.67270366,117950.0,117940.0,0.002]
[1753333354601,0.6045714,117950.0,117940.0,0.19299]
[1753333354801,0.6045714,117950.0,117940.0,0.3923545]
[1753333355000,0.6045714,117950.0,117940.0,0.22287]
[1753333355205,0.6045714,117950.0,117940.0,0.82083]
[1753333358302,0.6045714,117950.0,117940.0,0.9903145]
[1753333358500,0.28497325,117950.0,117940.0,1.0089945]
[1753333358698,0.07759315,117950.0,117940.0,1.0089945]
[1753333358894,0.05749,117950.0,117940.0,1.0089945]
[1753333359099,0.2269601,117950.0,117940.0,1.0089945]
[1753333360200,0.02008427,117950.0,117940.0,1.0089945]
[1753333360597,0.0597,117960.0,117950.0,0.2769501]
[1753333360803,0.2291557,117960.0,117950.0,0.4090201]
[1753333361003,0.1694557,117960.0,117950.0,0.4090201]
[1753333361205,0.2715139,117970.0,117960.0,0.4090057]
[1753333361406,0.29160456,117970.0,117960.0,1.0068457]
[1753333361600,0.2715139,117970.0,117960.0,1.0068457]
[1753333362000,0.3138549,117980.0,117970.0,0.4089913]
[1753333362205,0.29158844,117980.0,117970.0,0.4089913]
[1753333362400,0.02009384,117980.0,117970.0,0.4089913]
[1753333362601,0.18952084,117980.0,117970.0,0.4089913]
[1753333362998,0.169427,117980.0,117970.0,0.4089913]
[1753333364109,0.169427,117980.0,117970.0,0.4099913]
[1753333364510,0.334837,117980.0,117970.0,0.4089913]
[1753333364706,0.335837,117980.0,117970.0,0.4129913]
[1753333365009,0.230127,117980.0,117970.0,0.4129913]
[1753333365203,0.230127,117980.0,117970.0,0.4159913]
[1753333370915,0.463727,117980.0,117970.0,0.9947913]
[1753333371717,0.463727,117980.0,117970.0,1.0128313]
[1753333373320,0.463727,117980.0,117970.0,1.0127113]
[1753333373520,0.268817,117980.0,117970.0,0.4153513]
[1753333373821,0.268817,117980.0,117970.0,1.0127113]
[1753333374214,0.268817,117980.0,117970.0,1.0126713]
[1753333375121,0.335837,117980.0,117970.0,1.0126713]
[1753333375421,0.463727,117980.0,117970.0,1.0126713]
[1753333376822,0.463727,117980.0,117970.0,0.4153513]
[1753333377023,0.463727,117980.0,117970.0,1.0126313]
[1753333377318,0.463727,117980.0,117970.0,1.0125913]
[1753333377520,0.463727,117980.0,117970.0,1.0125513]
[1753333378426,0.268817,117980.0,117970.0,0.4153513]
[1753333378624,0.268817,117980.0,117970.0,1.0125513]
[1753333379622,0.463727,117980.0,117970.0,1.0125513]
[1753333380418,0.347927,117980.0,117970.0,1.0125513]
[1753333380623,0.300287,117980.0,117970.0,1.0125513]
[1753333381024,0.268817,117980.0,117970.0,1.0125513]
[1753333381328,0.170427,117980.0,117970.0,1.0125513]
[1753333381626,0.001,117980.0,117970.0,1.0125513]
[1753333385326,1.501,117980.0,117970.0,1.0125513]
[1753333387630,0.001,117980.0,117970.0,1.0125513]
[1753333388128,1.501,117980.0,117970.0,1.0125513]
[1753333389828,1.501,117980.0,117970.0,1.3099513]
[1753333390224,1.52119428,117980.0,117970.0,1.3099513]
[1753333392033,1.52119428,117980.0,117970.0,1.32708379]
[1753333394730,1.52119428,117980.0,117970.0,1.49661178]
[1753333395030,0.02119428,117980.0,117970.0,1.49661178]
[1753333395637,0.02119428,117980.0,117970.0,1.49650334]
[1753333397640,0.02119428,117980.0,117970.0,1.32697535]
[1753333398641,0.07818428,117980.0,117970.0,1.32697535]
[1753333408744,0.0782131,117980.0,117970.0,1.32697535]
[1753333409145,0.0782131,117980.0,117970.0,1.32597535]
[1753333410042,0.0212231,117980.0,117970.0,1.32597535]
[1753333411145,0.0782131,117980.0,117970.0,1.32597535]
[1753333412342,0.0782131,117980.0,117970.0,1.32589535]
[1753333412544,0.2476401,117980.0,117970.0,1.32585535]
[1753333412844,0.2855101,117980.0,117970.0,1.32585535]
[1753333413045,0.1839331,117980.0,117970.0,1.32585535]
[1753333413449,0.2302331,117980.0,117970.0,1.32585535]
[1753333414147,0.2292331,117980.0,117970.0,1.32185535]
[1753333414342,0.2292331,117980.0,117970.0,1.32485535]
[1753333414645,0.2292331,117980.0,117970.0,1.32385535]
[1753333415247,0.1829331,117980.0,117970.0,1.32385535]
[1753333416449,0.2567231,117980.0,117970.0,1.32385535]
[1753333416649,0.3030231,117980.0,117970.0,1.32385535]
[1753333418650,0.1150831,117980.0,117970.0,1.32385535]
[1753333419151,0.2594531,117980.0,117970.0,1.32385535]
[1753333419446,0.3012231,117980.0,117970.0,1.32385535]
[1753333419652,0.4706501,117980.0,117970.0,1.30557535]
[1753333420154,0.4706501,117980.0,117970.0,1.30570306]
[1753333421945,0.4706501,117980.0,117970.0,0.52193306]
[1753333422152,0.4706501,117980.0,117970.0,1.08475306]
[1753333424055,0.4706501,117980.0,117970.0,1.0676013]
[1753333425155,0.4706501,117980.0,117970.0,1.1138013]
[1753333425355,0.4706501,117980.0,117970.0,0.8479013]
[1753333427752,0.4706501,117980.0,117970.0,0.67846]
[1753333428155,0.4706501,117980.0,117970.0,0.63226]
[1753333429157,0.4706501,117980.0,117970.0,0.67846]
[1753333429753,0.4706501,117980.0,117970.0,0.63226]
[1753333429952,0.4706501,117980.0,117970.0,0.60076]
[1753333433958,0.2805157,117960.0,117950.0,0.20510055]
[1753333434161,0.4725788,117960.0,117950.0,0.80062055]
[1753333434758,0.4725788,117960.0,117950.0,0.97009065]
[1753333435659,0.4725788,117960.0,117950.0,0.97409065]
[1753333435961,0.4735788,117960.0,117950.0,0.80962055]
[1753333436463,0.4735788,117960.0,117950.0,0.62178055]
[1753333439361,0.4735788,117960.0,117950.0,0.60452]
[1753333440062,0.4735788,117960.0,117950.0,0.009]
[1753333440466,0.4735788,117960.0,117950.0,0.0867]
[1753333441063,0.4735788,117960.0,117950.0,0.009]
[1753333441263,0.4735788,117960.0,117950.0,0.005]
[1753333441463,0.4513701,117950.0,117940.0,0.78332]
[1753333441658,0.4715932,117950.0,117940.0,0.78332]
[1753333442262,0.4715932,117950.0,117940.0,0.9528044]
[1753333442463,0.4715932,117950.0,117940.0,0.78332]
[1753333442963,0.4715932,117950.0,117940.0,0.74139]
[1753333443156,0.4715932,117950.0,117940.0,0.62698]
[1753333443360,0.4715932,117950.0,117940.0,0.66891]
[1753333443558,0.4725932,117950.0,117940.0,0.78465]
[1753333444668,0.4725932,117950.0,117940.0,0.66891]
[1753333445659,0.4725932,117950.0,117940.0,0.71761]
[1753333445863,0.4725932,117950.0,117940.0,0.78565]
[1753333446069,0.4745932,117950.0,117940.0,0.78565]
[1753333449879,0.4745932,117950.0,117940.0,0.9751245]
[1753333450078,0.4745932,117950.0,117940.0,0.80564]
[1753333450275,0.4745932,117950.0,117940.0,0.9751245]
[1753333450476,0.4745932,117950.0,117940.0,0.80564]
[1753333450675,0.4745932,117950.0,117940.0,0.9751245]
[1753333450871,0.4745932,117950.0,117940.0,0.1704845]
[1753333451071,0.4745932,117950.0,117940.0,0.74266]
[1753333451376,0.4745932,117950.0,117940.0,0.78684]
[1753333452981,0.60218463,117950.0,117940.0,0.59632]
[1753333453879,0.60218463,117950.0,117940.0,0.67562]
[1753333455481,0.60218463,117950.0,117940.0,0.78684]
[1753333455779,0.60218463,117950.0,117940.0,0.7868]
[1753333458181,0.60218463,117950.0,117940.0,0.19152]
[1753333458374,0.60218463,117950.0,117940.0,0.78676]
[1753333459885,0.60218463,117950.0,117940.0,0.19152]
[1753333460083,0.60218463,117950.0,117940.0,0.78676]